Cogmind - Beta 10.2 @@@ ROGUE MODE // 2021.03.12 @ 17:53:39 Player: NuggetPls Result: Self-destructed Performance ------------- Evolutions (1) 500 Regions Visited (3) 600 Robots Destroyed (18) 90 Value Destroyed (292) 292 Prototype IDs (0) 0 Alien Tech Used (0) 0 Bonus (0) 0 TOTAL SCORE: 1482 Bonus ------- None Cogmind --------- Core Integrity 102/400 Matter 167/300 Energy 85/100 System Corruption 0% Temperature Cool (156) Movement Flying (120) Ox1 Location -9/Mines Parts ------- > --- POWER (1) -------- (None) > --- PROPULSION (3) --- Flight Unit > --- UTILITY (3) ------ Cooling System Signal Interpreter > --- WEAPON (2) ------- Medium Laser Small Laser > --- INVENTORY (4) ---- Ion Engine Light Ion Engine Flight Unit Peak State ------------ > --- POWER ------------ Reinforced Ion Engine > --- PROPULSION ------- Aluminum Leg Aluminum Leg Wheel > --- UTILITY ---------- Medium Storage Unit Signal Interpreter ECM Suite > --- WEAPON ----------- Light Assault Rifle Light Assault Rifle > --- INVENTORY -------- Ion Engine Light Ion Engine Compact Wheel Medium Laser Small Laser Light Assault Rifle Light Assault Rifle [Rating: 10] Favorites ----------- Power Ion Engine Engine Ion Engine Propulsion Aluminum Leg Leg Aluminum Leg Wheel Wheel Hover Unit Improved Hover Unit Flight Unit Flight Unit Utility Medium Storage Unit Device ECM Suite Storage Medium Storage Unit Processor Signal Interpreter Weapon Light Assault Rifle Energy Gun Medium Laser Ballistic Gun Light Assault Rifle Launcher Rocket Launcher Build | -11 -10 -9 -9 ------- Run | Scr Mat Mat Min Slots Evolved 2 | . . 2 . Power . | . . . . Propulsion 1 | . . 1 . Utility 1 | . . 1 . Weapon . | . . . . Parts Attached 33 | 6 5 1 21 Power 3 | 1 . . 2 Engine 3 | 1 . . 2 Core . | . . . . Reactor . | . . . . Propulsion 9 | 2 . . 7 Treads . | . . . . Leg 2 | 2 . . . Wheel 2 | . . . 2 Hover 1 | . . . 1 Flight 4 | . . . 4 Utility 6 | 1 2 1 2 Device 3 | . 1 . 2 Storage 2 | 1 1 . . Processor 1 | . . 1 . Hackware . | . . . . Protection . | . . . . Artifact . | . . . . Weapon 15 | 2 3 . 10 Energy Gun 4 | 1 . . 3 Energy Cannon . | . . . . Ballistic Gun 9 | 1 3 . 5 Ballistic Cannon . | . . . . Launcher 2 | . . . 2 Special Weapon . | . . . . Impact Weapon . | . . . . Slashing Weapon . | . . . . Piercing Weapon . | . . . . Special Melee Weapon . | . . . . Unidentified Prototypes . | . . . . Parts Lost 14 | . . . 14 Power 2 | . . . 2 Propulsion 6 | . . . 6 Utility 1 | . . . 1 Weapon 5 | . . . 5 Highest Loss Streak 8 | . . . 8 Average Slot Usage (%) 85 | . 97 88 77 Engine 11 | . 14 11 9 Leg 16 | . 28 22 9 Wheel 4 | . . . 7 Flight 4 | . . . 7 Device 6 | . 12 11 2 Storage 11 | . 13 11 9 Processor 7 | . . 11 11 Energy Gun 5 | . 8 . 4 Ballistic Gun 15 | . 19 22 12 Launcher 1 | . . . 2 Naked Turns . | . . . . Heaviest Build 24 | 12 17 16 24 Greatest Support 26 | 20 20 20 26 Greatest Overweight (x) 2 | . . . 2 Average Overweight (x) . | . . . . Largest Inventory Capacity 8 | 6 8 8 8 Average Capacity 7 | 5 7 8 7 Most Carried 8 | 4 8 7 8 Average Carried 5 | 1 5 7 6 Final Capacity 8 | 6 8 8 4 Final Carried 8 | 4 8 7 3 Class Distribution -------------------- 88% | Mutant 11% | Scavenger-Mutant Dominant Class ---------------- Mutant | -10/Materials Mutant | -9/Materials Mutant | -9/Mines Resources | -11 -10 -9 -9 ----------- Run | Scr Mat Mat Min Matter Collected 533 | 197 90 . 246 Remotely . | . . . . Salvage Created 409 | . 90 . 319 Parts 30 | . 9 . 21 Haulers Intercepted . | . . . . Recyclers Shooed . | . . . . Parts Field Recycled . | . . . . Retrieved Matter . | . . . . Parts Self-Destructed . | . . . . Prevented . | . . . . Kills | -11 -10 -9 -9 ------- Run | Scr Mat Mat Min Combat Hostiles Destroyed 13 | . 4 . 9 Guns 11 | . 4 . 7 AOE 2 | . . . 2 Classes Destroyed 7 | . 2 . 5 Worker 2 | . . . 2 Builder 2 | . . . 2 Recycler 1 | . . . 1 Swarmer 8 | . 3 . 5 Grunt 2 | . 1 . 1 Brawler 1 | . . . 1 Sentry 2 | . . . 2 Best Kill Streak 6 | . 3 . 6 Combat Bots Only 4 | . 3 . 4 Max Kills in Single Turn 2 | . 1 . 2 Gunslinging 1 | . . . 1 Exploded 1 | . . . 1 Melee . | . . . . Uniques/NPCs Destroyed . | . . . . Combat | -11 -10 -9 -9 -------- Run | Scr Mat Mat Min Damage Taken 1484 | . 191 . 1293 Core 334 | . 36 . 298 Absorbed by Shields . | . . . . Core Remaining (%) 92 | 100 85 . . Volleys Fired 58 | . 12 . 46 Largest 2 | . 2 . 2 Hottest 90 | . 70 . 90 Shots Fired 106 | . 24 . 82 Gun 98 | . 24 . 74 Cannon . | . . . . Launcher 8 | . . . 8 Special . | . . . . Kinetic 83 | . 23 . 60 Thermal 15 | . 1 . 14 Explosive 8 | . . . 8 Electromagnetic . | . . . . Robot Hit Streak 5 | . 3 . 5 Robot Miss Streak 3 | . 3 . 3 Penetration Max . | . . . . Secondary Targets 3 | . . . 3 Max Gunslinging Chain 1 | . . . 1 Shots Hit Robots 46 | . 13 . 33 Core Hits 30 | . 6 . 24 Critical Hits 1 | . . . 1 Critical Kills 1 | . . . 1 Critical Parts Destroyed . | . . . . Melee Attacks . | . . . . Impact . | . . . . Slashing . | . . . . Piercing . | . . . . Sneak Attacks . | . . . . Combat Hostiles . | . . . . Follow-up Attacks . | . . . . Damage Inflicted 806 | . 113 . 693 Guns 417 | . 113 . 304 Cannons . | . . . . Explosions 389 | . . . 389 Melee . | . . . . Ramming . | . . . . Kinetic 369 | . 113 . 256 Thermal 48 | . . . 48 Explosive 389 | . . . 389 Electromagnetic . | . . . . Impact . | . . . . Slashing . | . . . . Piercing . | . . . . Highest Corruption . | . . . . Average Corruption . | . . . . Corruption Purged . | . . . . Overload Shots . | . . . . Overflow Damage 2 | . . . 2 Projectiles . | . . . . Explosions 2 | . . . 2 Melee . | . . . . Knockbacks . | . . . . Impact . | . . . . Kinetic . | . . . . Secondary . | . . . . Self-Inflicted Damage 24 | . . . 24 Shots 1 | . . . 1 Rammed . | . . . . Targets Rammed . | . . . . Kicked . | . . . . Crushed . | . . . . Highest Temperature 156 | . 36 . 156 Average Temperature 38 | . 22 . 39 Received Heat Transfer 162 | . 18 . 144 Siege Activations . | . . . . Robots Corrupted . | . . . . Combat Hostiles . | . . . . Parts Fried . | . . . . Impact Corruptions . | . . . . Robots Melted . | . . . . Combat Hostiles . | . . . . Parts Melted . | . . . . Heat Transferred 148 | . . . 148 Parts Sabotaged . | . . . . Parts Stolen . | . . . . Parts Stripped . | . . . . Power Chain Reactions . | . . . . Missiles Intercepted . | . . . . Alert | -11 -10 -9 -9 ------- Run | Scr Mat Mat Min Peak Influence 190 | . 190 79 130 Initial 79 | . . 79 30 Average 78 | . 76 79 92 Maximum Alert Level . | . . . . Low Security (%) 100 | 100 100 100 100 Level 1 . | . . . . Level 2 . | . . . . Level 3 . | . . . . Level 4 . | . . . . Level 5 . | . . . . High Security . | . . . . Max Security . | . . . . Squads Dispatched 5 | . 4 1 . Investigation . | . . . . Extermination . | . . . . Reinforcement 5 | . 4 1 . Assault . | . . . . Garrison . | . . . . Intercept . | . . . . Construction Impeded . | . . . . Haulers Reinforced . | . . . . Stealth | -11 -10 -9 -9 --------- Run | Scr Mat Mat Min Distress Signals . | . . . . Communications Jammed . | . . . . Distress Signals . | . . . . Times Spotted 26 | . 12 1 13 Peak Tracking Total 4 | . 3 . 4 Tactical Retreats 2 | . 1 . 1 Traps | -11 -10 -9 -9 ------- Run | Scr Mat Mat Min Traps Triggered . | . . . . Indirectly . | . . . . Trap Hack Attempts . | . . . . Triggered . | . . . . Disarmed . | . . . . Reprogrammed . | . . . . Reused . | . . . . Traps Extracted . | . . . . Installed . | . . . . Triggered . | . . . . Machines | -11 -10 -9 -9 ---------- Run | Scr Mat Mat Min Machines Disabled . | . . . . Max in Single Turn . | . . . . Machines Sabotaged . | . . . . Garrisons Compromised . | . . . . Overloaded Fab Kills . | . . . . Fab Network Shutdowns . | . . . . Hacking | -11 -10 -9 -9 --------- Run | Scr Mat Mat Min Machines Accessed 1 | . 1 . . Terminals 1 | . 1 . . Fabricators . | . . . . Repair Stations . | . . . . Recycling Units . | . . . . Scanalyzers . | . . . . Garrison Access . | . . . . Total Hacks 1 | . 1 . . Successful 1 | . 1 . . Failed . | . . . . Catastrophic . | . . . . Database Lockouts . | . . . . Manual . | . . . . Terminals 1 | . 1 . . Fabricators . | . . . . Repair Stations . | . . . . Recycling Units . | . . . . Scanalyzers . | . . . . Garrison Access . | . . . . Terminal Hacks 1 | . 1 . . Record 1 | . 1 . . Fabricator Hacks . | . . . . Repair Station Hacks . | . . . . Recycling Unit Hacks . | . . . . Scanalyzer . | . . . . Garrison Access Hacks . | . . . . Unauthorized Hacks . | . . . . Terminals . | . . . . Fabricators . | . . . . Repair Stations . | . . . . Recycling Units . | . . . . Scanalyzers . | . . . . Garrison Access . | . . . . Data Cores Recovered . | . . . . Used . | . . . . Hacking Detections . | . . . . Full Trace Events . | . . . . Feedback Events . | . . . . Feedback Blocked . | . . . . Robot Schematics Acquired . | . . . . Robots Built . | . . . . Matter . | . . . . Time . | . . . . Total Robot Build Rating . | . . . . Part Schematics Acquired . | . . . . Parts Built . | . . . . Matter . | . . . . Time . | . . . . Total Part Build Rating . | . . . . Parts Repaired . | . . . . Time . | . . . . Parts Recycled . | . . . . Recycled Matter . | . . . . Retrieved Matter . | . . . . Retrieved Components . | . . . . Parts Scanalyzed . | . . . . Part Schematics Acquired . | . . . . Parts Damaged . | . . . . Bothacking | -11 -10 -9 -9 ------------ Run | Scr Mat Mat Min Used RIF Installer . | . . . . Robots Hacked . | . . . . Non-combat . | . . . . Combat . | . . . . Robot Hacks Applied . | . . . . Relay Couplers Released . | . . . . Robots Rewired . | . . . . Allies Hacked . | . . . . Hacks Repelled . | . . . . Allies | -11 -10 -9 -9 -------- Run | Scr Mat Mat Min Total Allies . | . . . . Largest Group . | . . . . Highest-Rated Group . | . . . . Highest-Rated Ally . | . . . . Total Orders . | . . . . Ally Attacks . | . . . . Total Damage . | . . . . Kills . | . . . . Allies Corrupted . | . . . . Allies Melted . | . . . . Intel | -11 -10 -9 -9 ------- Run | Scr Mat Mat Min Robot Analysis Total . | . . . . Derelict Logs Recovered . | . . . . Drone Launches . | . . . . Drone Recoveries . | . . . . Exploration | -11 -10 -9 -9 ------------- Run | Scr Mat Mat Min Turns Passed 1033 | 87 324 61 561 Spaces Moved 697 | 71 222 51 353 Core 17 | 15 . . 2 Treads . | . . . . Legs 517 | 56 222 51 188 Wheels 4 | . . . 4 Hover . | . . . . Flight 159 | . . . 159 Fastest Speed 34 | 50 120 120 34 Average Speed 114 | 105 120 120 112 Slowest Speed 200 | 120 120 120 200 Overloaded Moves . | . . . . Propulsion Burnouts . | . . . . Robots Hopped . | . . . . Cave-ins Triggered . | . . . . Exploration Rate (%) 26 | 4 34 11 57 Regions Visited 3 Branch Regions 1 Pre-discovered Areas . | . . . . Known Exits Taken 1 | . . 1 . Unknown Exits Taken 2 | 1 1 . . Scrap Searched 1 | . . . 1 Spaces Dug . | . . . . Terrain Destroyed 72 | . . . 72 Melee . | . . . . Projectile . | . . . . AOE 72 | . . . 72 Terrain Rammed . | . . . . Walls Destroyed . | . . . . Machines Disabled . | . . . . Actions | -11 -10 -9 -9 --------- Run | Scr Mat Mat Min Total 830 | 80 259 51 440 Wait 29 | . 16 . 13 Move 694 | 70 221 50 353 Hop . | . . . . Pick Up 10 | 4 3 . 3 Fast Attach 13 | 6 1 . 6 Attach 12 | . 2 1 9 Detach 1 | . 1 . . Swap 8 | . 2 . 6 Drop 5 | . 1 . 4 Fire 58 | . 12 . 46 Melee . | . . . . Ram . | . . . . Kick . | . . . . Crush . | . . . . Escape Stasis . | . . . . Rewire . | . . . . Trap . | . . . . Miscellaneous . | . . . . Route ------- -11/Scrapyard -10/Materials -9/Materials -9/Mines History --------- Turn | Location | Event 4 | -11/Scrapyard | Discovered new exit (range 15) 88 | -11/Scrapyard | Entered Materials 307 | -10/Materials | Build established: Mutant 382 | -10/Materials | Discovered new exit (range 10) 412 | -10/Materials | Entered another Materials area 412 | -9/Materials | Evolved 2 slots: Propulsion x1, Utility x1 440 | -9/Materials | Discovered new exit (range 16) 470 | -9/Materials | Identified exit to Mines 473 | -9/Materials | Entered Mines 614 | -9/Mines | Lost 3 parts (1n1u1w) 616 | -9/Mines | Received a Rocket Launcher from a helpful Derelict 877 | -9/Mines | Core integrity fell below 50% 916 | -9/Mines | Lost 8 parts (1p3n4w) 1034 | -9/Mines | Self-destructed Last Messages --------------- 00907_ Acquired Flight Unit. 00907_ U-05 Engineer lays Concrete. 00908_ Acquired 20 matter. 00909_ Acquired 10 matter. 00909_ U-05 Engineer builds a Wall. 00909_ Dropped Lgt. Assault Rifle. 00913_ U-05 Engineer builds a Wall. 00922_ Acquired Lgt. Ion Engine. 00958_ Acquired Imp. Hover Unit. 00960_ Dropped Imp. Hover Unit. 00962_ Dropped Med. Storage Unit. 00963_ Acquired Cooling System. 00969_ Dropped Cooling System. 00976_ Acquired Cooling System. 00990_ Acquired 10 matter. 01019_ Flight Unit destroyed. 01028_ Lgt. Ion Engine destroyed. 01028_ S-10 Pest destroyed. 01028_ Switching to secondary target: S-10 Pest. 01031_ Flight Unit destroyed. Map ----- +----------------------------------------------------+ | ??## ?????# ##????????????????? | | ### ????# #????????????????? | | ## #### ##???????????????? | | #? ## #???????????????? | | #?# ####????????????? | | ??# ????????????? | | ??# ??????????????? | | #??# #????????????????? | | ##### #???#####????????? | | ##### #????# #????????? | | ##???# ###??????? | | #???# ##?????? | | ######## #???# #?????? | | #####??### ##??## #?????? | | ?????????# ###???# ##????? | | ?????????# #??#### #????? | | ??????#### #??# #????? | | ??????# #??# ### ##???? | | ??????# #??# ### ##??? | | ????# # ##??# ## #??? | | ????# ### #???# ## #??? | | ????# ??# #???# ## ##??? | | ??? ???# ##### ### #???? | | ?? ????# #?# ##??? | | ? ##?????# #######?## #??? | | ????????# #????????## @ ##??? | | ?????????# ?????????##s%####???? | | ?????????###??????????# ##?????? | | ??????????????????????# #?????? | | ?????????????????# s #?????? | | ?????????????????###### #?????? | | ??????????????????????# #?????? | | ??????????????????????# ?????? | | ??????????????????????# ?????? | | ??????????????????????# ##????? | | ??????????????????????# ##?????? | | ??????????????????????# #??????? | | ??????????????????????# #??????? | | ??????????????????????# #??????? | | ??????????????????????# $???????? | | ?????????????????????? ???????? | | ?????????????????????? ???????? | | ?????????????????????? ""???????? | | ????????????????????????????????? | | ????????????????????????????????? | | ????????????????????????????????? | | ????????????????????????????????? | | ????????????????????????????????? | | ????????????????????????????????? | | ????????????????????????????????? | +----------------------------------------------------+ Best States ------------- Heat Dissipation 28 Energy Generation 12 Energy Capacity 265 Matter Stores 300 Matter Capacity 300 Sight Range 16 Terrain Scan Density 10 ECM Strength 1 Evasion (%) 63 Item Schematics ----------------- None Robot Schematics ------------------ None Fabricated ------------ Nothing Alien Tech Used ----------------- None Achievements -------------- None Challenges ------------ None Game ------ Seed MediumBattleCore Manual? 0 Play Time 00:18:43 Cumulative 1.0 hours Start 2021.03.12 @ 17:37:01 End 2021.03.12 @ 17:53:39 Sessions 1 Manual Loads 0 Difficulty Rogue Special Mode None Game No. 1 Rogue 1 Adventurer 0 Explorer 0 Win Type - Total 0 Types 0/0/0/0/0/0/0/0/0 Lore% 0 Gallery% 3 Achievement% 6 Wizard Run 0 Options --------- ASCII 0 Keyboard 0 Movement Numpad Keybinds 0 Fullscreen 2 Font 18/SmallcapsGlow Map View 76x50 Tactical HUD 1 Map Filters NONE Filters NONE Steam 1 RUN: 7f755117-9965-4a6d-a5bb-9ef50bab1ee9